fUSD/lending_fUSD_20240420
["ID","MTS","AMOUNT","RATE_DAILY","PERIOD"]
[323025509,1713600658176,-221.54744224,0.00015616,2]
[323025510,1713600658190,-500.0,0.00015616,2]
[323025511,1713600658202,-500.0,0.00015616,2]
[323025512,1713600658215,-500.0,0.00015616,2]
[323025513,1713600658228,-402.2317886,0.00015616,2]
[323025514,1713600658242,-500.0,0.00015616,2]
[323025515,1713600658255,-992.23,0.00015616,2]
[323025516,1713600658265,-623.15,0.00015616,2]
[323025517,1713600658278,-500.0,0.00015616,2]
[323025518,1713600658290,-1147.23,0.00015616,2]
[323025519,1713600658302,-604.66581998,0.00015616,2]
[323025520,1713600658316,-500.0,0.00015616,2]
[323025521,1713600658329,-500.0,0.00015616,2]
[323025522,1713600658342,-500.0,0.00015616,2]
[323025523,1713600658355,-524.7,0.00015616,2]
[323025524,1713600658368,-535.36,0.00015616,2]
[323025525,1713600658378,-500.0,0.00015616,2]
[323025526,1713600658388,-500.0,0.00015616,2]
[323025527,1713600658398,-561.86,0.00015616,2]
[323025528,1713600658408,-526.21,0.00015616,2]
[323025529,1713600658419,-500.0,0.00015616,2]
[323025530,1713600658432,-600.48,0.00015616,2]
[323025531,1713600658442,-802.06,0.00015616,2]
[323025532,1713600658455,-603.21,0.00015616,2]
[323025533,1713600658467,-782.58,0.00015616,2]
[323025534,1713600658478,-572.46,0.00015616,2]
[323025535,1713600658488,-751.77,0.00015616,2]
[323025536,1713600658499,-500.0,0.00015616,2]
[323025537,1713600658510,-500.0,0.00015616,2]
[323025538,1713600658520,-500.0,0.00015616,2]
[323025539,1713600658531,-500.0,0.00015616,2]
[323025540,1713600658541,-500.0,0.00015616,2]
[323025541,1713600658554,-500.0,0.00015616,2]
[323025542,1713600658566,-500.0,0.00015616,2]
[323025543,1713600658577,-500.0,0.00015616,2]
[323025544,1713600658588,-526.49,0.00015616,2]
[323025545,1713600658599,-500.0,0.00015616,2]
[323025546,1713600658609,-687.47,0.00015616,2]
[323025547,1713600658620,-720.9,0.00015616,2]
[323025548,1713600658631,-500.0,0.00015616,2]
[323025549,1713600658642,-500.0,0.00015616,2]
[323025550,1713600658653,-500.0,0.00015616,2]
[323025551,1713600658664,-763.76,0.00015616,2]
[323025552,1713600658674,-500.0,0.00015616,2]
[323025553,1713600658685,-500.0,0.00015616,2]
[323025554,1713600658696,-500.0,0.00015616,2]
[323025555,1713600658707,-500.0,0.00015616,2]
[323025556,1713600658718,-500.0,0.00015616,2]
[323025557,1713600658729,-500.0,0.00015616,2]
[323025558,1713600658741,-500.0,0.00015616,2]
[323025559,1713600658752,-500.0,0.00015616,2]
[323025560,1713600658763,-991.74,0.00015616,2]
[323025561,1713600658774,-532.54,0.00015616,2]
[323025562,1713600658784,-500.0,0.00015616,2]
[323025563,1713600658795,-500.0,0.00015616,2]
[323025564,1713600658807,-679.73,0.00015616,2]
[323025565,1713600658818,-694.39,0.00015616,2]
[323025566,1713600658829,-500.0,0.00015616,2]
[323025567,1713600658840,-500.0,0.00015616,2]
[323025568,1713600658851,-500.0,0.00015616,2]
[323025569,1713600658862,-594.56,0.00015616,2]
[323025570,1713600658873,-943.0,0.00015616,2]
[323025571,1713600658888,-500.0,0.00015616,2]
[323025572,1713600658899,-635.57,0.00015616,2]
[323025573,1713600658910,-500.0,0.00015616,2]
[323025574,1713600658921,-500.0,0.00015616,2]
[323025575,1713600658932,-500.0,0.00015616,2]
[323025576,1713600658943,-500.0,0.00015616,2]
[323025577,1713600658956,-699.91,0.00015616,2]
[323025578,1713600658967,-500.0,0.00015616,2]
[323025579,1713600658979,-500.0,0.00015616,2]
[323025580,1713600658990,-500.0,0.00015616,2]
[323025581,1713600659001,-526.74,0.00015616,2]
[323025582,1713600659013,-500.0,0.00015616,2]
[323025583,1713600659024,-500.0,0.00015616,2]
[323025584,1713600659035,-500.0,0.00015616,2]
[323025585,1713600659047,-500.0,0.00015616,2]
[323025586,1713600659058,-500.0,0.00015616,2]
[323025587,1713600659069,-500.0,0.00015616,2]
[323025588,1713600659080,-500.0,0.00015616,2]
[323025589,1713600659091,-500.0,0.00015616,2]
[323025590,1713600659102,-500.0,0.00015616,2]
[323025591,1713600659112,-823.75,0.00015616,2]
[323025592,1713600659123,-500.0,0.00015616,2]
[323025593,1713600659134,-500.0,0.00015616,2]
[323025594,1713600659145,-500.0,0.00015616,2]
[323025595,1713600659156,-217.04464693,0.00015616,2]
[323025596,1713600659167,-500.0,0.00015616,2]
[323025597,1713600659178,-500.0,0.00015616,2]
[323025598,1713600659189,-539.16,0.00015616,2]
[323025599,1713600659199,-500.0,0.00015616,2]
[323025600,1713600659210,-640.13,0.00015616,2]
[323025601,1713600659221,-500.0,0.00015616,2]
[323025602,1713600659232,-635.01,0.00015616,2]
[323025603,1713600659243,-507.97,0.00015616,2]
[323025604,1713600659254,-500.0,0.00015616,2]
[323025605,1713600659265,-500.0,0.00015616,2]
[323025606,1713600659276,-512.95,0.00015616,2]
[323025607,1713600659287,-500.0,0.00015616,2]
[323025608,1713600659299,-559.9,0.00015616,2]
[323025609,1713600659310,-500.0,0.00015616,2]
[323025610,1713600659321,-618.87,0.00015616,2]
[323025611,1713600659332,-810.63,0.00015616,2]
[323025612,1713600659343,-500.0,0.00015616,2]
[323025613,1713600659355,-500.0,0.00015616,2]
[323025614,1713600659372,-500.0,0.00015616,2]
[323025615,1713600659383,-556.7,0.00015616,2]
[323025616,1713600659394,-500.0,0.00015616,2]
[323025617,1713600659406,-500.0,0.00015616,2]
[323025618,1713600659417,-846.56,0.00015616,2]
[323025619,1713600659428,-1494.16,0.00015616,2]
[323025620,1713600659438,-500.0,0.00015616,2]
[323025621,1713600659449,-500.0,0.00015616,2]
[323025622,1713600659460,-500.0,0.00015616,2]
[323025623,1713600659470,-500.0,0.00015616,2]
[323025624,1713600659481,-588.32,0.00015616,2]
[323025625,1713600659492,-797.28,0.00015616,2]
[323025626,1713600659502,-500.0,0.00015616,2]
[323025627,1713600659513,-1382.37,0.00015616,2]
[323025628,1713600659524,-500.0,0.00015616,2]
[323025629,1713600659534,-500.0,0.00015616,2]
[323025630,1713600659545,-569.44,0.00015616,2]
[323025631,1713600659557,-1432.46,0.00015616,2]
[323025632,1713600659568,-500.0,0.00015616,2]
[323025633,1713600659578,-500.0,0.00015616,2]
[323025634,1713600659589,-874.03,0.00015616,2]
[323025635,1713600659600,-500.0,0.00015616,2]
[323025636,1713600659611,-998.78,0.00015616,2]
[323025637,1713600659621,-500.0,0.00015616,2]
[323025638,1713600659632,-500.0,0.00015616,2]
[323025639,1713600659644,-500.0,0.00015616,2]
[323025640,1713600659655,-500.0,0.00015616,2]
[323025641,1713600659667,-500.0,0.00015616,2]
[323025642,1713600659678,-500.0,0.00015616,2]
[323025643,1713600659690,-698.54,0.00015616,2]
[323025644,1713600659700,-500.0,0.00015616,2]
[323025645,1713600659711,-960.25,0.00015616,2]
[323025646,1713600659722,-500.0,0.00015616,2]
[323025647,1713600659734,-497.10476252,0.00015616,2]
[323025648,1713600659745,-1065.63,0.00015616,2]
[323025649,1713600659756,-500.0,0.00015616,2]
[323025650,1713600659767,-500.0,0.00015616,2]
[323025651,1713600659778,-1403.4,0.00015616,2]
[323025652,1713600659789,-500.0,0.00015616,2]
[323025653,1713600659800,-500.0,0.00015616,2]
[323025654,1713600659812,-500.0,0.00015616,2]
[323025655,1713600659823,-516.78,0.00015616,2]
[323025656,1713600659834,-1348.73,0.00015616,2]
[323025657,1713600659845,-500.0,0.00015616,2]
[323025658,1713600659856,-1403.1,0.00015616,2]
[323025659,1713600659866,-878.26,0.00015616,2]
[323025660,1713600659879,-500.0,0.00015616,2]
[323025661,1713600659892,-500.0,0.00015616,2]
[323025662,1713600659902,-500.0,0.00015616,2]
[323025663,1713600659914,-691.1,0.00015616,2]
[323025664,1713600659933,-500.0,0.00015616,2]
[323025665,1713600659944,-500.0,0.00015616,2]
[323025666,1713600659955,-500.0,0.00015616,2]
[323025667,1713600659967,-500.0,0.00015616,2]
[323025668,1713600659982,-939.17,0.00015616,2]
[323025669,1713600659993,-742.21,0.00015616,2]
[323025670,1713600660005,-500.0,0.00015616,2]
[323025671,1713600660016,-600.65,0.00015616,2]
[323025672,1713600660027,-500.0,0.00015616,2]
[323025673,1713600660038,-500.0,0.00015616,2]
[323025674,1713600660051,-1145.76,0.00015616,2]
[323025675,1713600660062,-500.0,0.00015616,2]
[323025676,1713600660074,-1292.49,0.00015616,2]
[323025677,1713600660084,-500.0,0.00015616,2]
[323025678,1713600660095,-500.0,0.00015616,2]
[323025679,1713600660106,-500.0,0.00015616,2]
[323025680,1713600660117,-680.05,0.00015616,2]
[323025681,1713600660127,-500.0,0.00015616,2]
[323025682,1713600660138,-838.36,0.00015616,2]
[323025683,1713600660149,-1329.15,0.00015616,2]
[323025684,1713600660161,-500.0,0.00015616,2]
[323025685,1713600660172,-500.0,0.00015616,2]
[323025686,1713600660182,-1511.78,0.00015616,2]
[323025687,1713600660193,-500.0,0.00015616,2]
[323025688,1713600660204,-500.0,0.00015616,2]
[323025689,1713600660214,-500.0,0.00015616,2]
[323025690,1713600660225,-1201.79,0.00015616,2]
[323025691,1713600660235,-915.17,0.00015616,2]
[323025692,1713600660245,-500.0,0.00015616,2]
[323025693,1713600660256,-500.0,0.00015616,2]
[323025694,1713600660266,-622.12,0.00015616,2]
[323025695,1713600660277,-904.69,0.00015616,2]
[323025696,1713600660288,-500.0,0.00015616,2]
[323025697,1713600660298,-500.0,0.00015616,2]
[323025698,1713600660311,-402.30526302,0.00015616,2]
[323025699,1713600660322,-500.0,0.00015616,2]
[323025700,1713600660332,-500.0,0.00015616,2]
[323025701,1713600660343,-500.0,0.00015616,2]
[323025702,1713600660354,-168.02055603,0.00015616,2]
[323025703,1713600660364,-1084.71,0.00015616,2]
[323025704,1713600660375,-1780.76,0.00015616,2]
[323025705,1713600660386,-500.0,0.00015616,2]
[323025706,1713600660396,-500.0,0.00015616,2]
[323025707,1713600660406,-500.0,0.00015616,2]
[323025708,1713600660417,-500.0,0.00015616,2]
[323025709,1713600660427,-764.61,0.00015616,2]
[323025710,1713600660438,-928.86,0.00015616,2]
[323025711,1713600660448,-500.0,0.00015616,2]
[323025712,1713600660458,-500.0,0.00015616,2]
[323025713,1713600660469,-500.0,0.00015616,2]
[323025714,1713600660480,-636.72,0.00015616,2]
[323025715,1713600660490,-1424.52,0.00015616,2]
[323025716,1713600660501,-150.0,0.00015616,2]
[323025717,1713600660512,-500.0,0.00015616,2]
[323025718,1713600660522,-500.0,0.00015616,2]
[323025719,1713600660533,-333.07292072,0.00015616,2]
[323025720,1713600660543,-500.0,0.00015616,2]
[323025721,1713600660554,-1186.32,0.00015616,2]
[323025722,1713600660566,-510.36,0.00015616,2]
[323025723,1713600660576,-500.0,0.00015616,2]
[323025724,1713600660587,-2250.4,0.00015616,2]
[323025725,1713600660597,-514.73,0.00015616,2]
[323025726,1713600660607,-1280.48,0.00015616,2]
[323025727,1713600660618,-500.0,0.00015616,2]
[323025728,1713600660629,-597.51,0.00015616,2]
[323025729,1713600660639,-500.0,0.00015616,2]
[323025730,1713600660650,-1222.91,0.00015616,2]
[323025731,1713600660661,-500.0,0.00015616,2]
[323025732,1713600660671,-500.0,0.00015616,2]
[323025733,1713600660682,-500.0,0.00015616,2]
[323025734,1713600660692,-746.66,0.00015616,2]
[323025735,1713600660702,-620.12,0.00015616,2]
[323025736,1713600660713,-877.27,0.00015616,2]
[323025737,1713600660723,-864.37,0.00015616,2]
[323025738,1713600660734,-500.0,0.00015616,2]
[323025739,1713600660744,-1668.06,0.00015616,2]
[323025740,1713600660754,-500.0,0.00015616,2]
[323025741,1713600660764,-500.0,0.00015616,2]
[323025742,1713600660775,-500.0,0.00015616,2]
[323025743,1713600660786,-2212.57,0.00015616,2]
[323025744,1713600660796,-507.51,0.00015616,2]
[323025745,1713600660808,-500.0,0.00015616,2]
[323025746,1713600660819,-500.0,0.00015616,2]
[323025747,1713600660830,-547.3,0.00015616,2]
[323025748,1713600660841,-938.07,0.00015616,2]
[323025749,1713600660853,-1238.6,0.00015616,2]
[323025750,1713600660865,-500.0,0.00015616,2]
[323025751,1713600660875,-500.0,0.00015616,2]
[323025752,1713600660890,-500.0,0.00015616,2]
[323025753,1713600660900,-502.08,0.00015616,2]
[323025754,1713600660914,-500.0,0.00015616,2]
[323025755,1713600660926,-500.0,0.00015616,2]
[323025756,1713600660937,-591.33,0.00015616,2]
[323025757,1713600660948,-500.0,0.00015616,2]
[323025758,1713600660960,-1402.99,0.00015616,2]
[323025759,1713600660971,-15276.58,0.00015616,2]
[323025760,1713600660982,-500.0,0.00015616,2]
[323025761,1713600660992,-1406.46,0.00015616,2]
[323025762,1713600661003,-1369.96,0.00015616,2]
[323025763,1713600661014,-500.0,0.00015616,2]
[323025764,1713600661024,-666.26,0.00015616,2]
[323025765,1713600661035,-630.08,0.00015616,2]
[323025766,1713600661046,-500.0,0.00015616,2]
[323025767,1713600661058,-500.0,0.00015616,2]
[323025768,1713600661069,-2964.79,0.00015616,2]
[323025769,1713600661079,-1271.21,0.00015616,2]
[323025770,1713600661091,-1619.96,0.00015616,2]
[323025771,1713600661102,-500.0,0.00015616,2]
[323025772,1713600661113,-1488.04,0.00015616,2]
[323025773,1713600661125,-1687.02,0.00015616,2]
[323025774,1713600661137,-500.0,0.00015616,2]
[323025775,1713600661150,-863.15,0.00015616,2]
[323025776,1713600661162,-966.71,0.00015616,2]
[323025777,1713600661173,-500.0,0.00015616,2]
[323025778,1713600661184,-500.0,0.00015616,2]
[323025779,1713600661194,-970.48,0.00015616,2]
[323025780,1713600661205,-2101.98,0.00015616,2]
[323025781,1713600661216,-2003.71,0.00015616,2]
[323025782,1713600661226,-500.0,0.00015616,2]
[323025783,1713600661239,-2415.01,0.00015616,2]
[323025784,1713600661250,-529.25,0.00015616,2]
[323025785,1713600661262,-500.0,0.00015616,2]
[323025786,1713600661272,-500.0,0.00015616,2]
[323025787,1713600661283,-500.0,0.00015616,2]
[323025788,1713600661294,-500.0,0.00015616,2]
[323025789,1713600661305,-500.0,0.00015616,2]
[323025790,1713600661318,-843.06,0.00015616,2]
[323025791,1713600661329,-1114.32,0.00015616,2]
[323025792,1713600661340,-500.0,0.00015616,2]
[323025793,1713600661351,-1383.89,0.00015616,2]
[323025794,1713600661362,-724.33,0.00015616,2]
[323025795,1713600661373,-504.88,0.00015616,2]
[323025796,1713600661384,-500.0,0.00015616,2]
[323025797,1713600661395,-20967.53,0.00015616,2]
[323025798,1713600661406,-795.48,0.00015616,2]
[323025799,1713600661417,-500.0,0.00015616,2]
[323025800,1713600661428,-500.0,0.00015616,2]
[323025801,1713600661439,-500.0,0.00015616,2]
[323025802,1713600662133,-500.0,0.00015616,2]
[323025803,1713600662161,-1738.96,0.00015616,2]
[323025804,1713600662173,-500.0,0.00015616,2]
[323025805,1713600662183,-2301.33,0.00015616,2]
[323025806,1713600662192,-500.0,0.00015616,2]
[323025807,1713600662201,-1838.33,0.00015616,2]
[323025808,1713600662210,-630.16,0.00015616,2]
[323025809,1713600662219,-500.0,0.00015616,2]
[323025810,1713600662228,-3823.01,0.00015616,2]
[323025811,1713600662238,-500.0,0.00015616,2]
[323025812,1713600662247,-1424.48,0.00015616,2]
[323025813,1713600662256,-500.0,0.00015616,2]
[323025814,1713600662265,-4704.64,0.00015616,2]
[323025815,1713600662275,-500.0,0.00015616,2]
[323025816,1713600662284,-2323.83,0.00015616,2]
[323025817,1713600662294,-2338.74,0.00015616,2]
[323025818,1713600662303,-1062.83,0.00015616,2]
[323025819,1713600662315,-500.0,0.00015616,2]
[323025820,1713600662324,-500.0,0.00015616,2]
[323025821,1713600662333,-500.0,0.00015616,2]
[323025822,1713600662342,-1313.93,0.00015616,2]
[323025823,1713600662351,-500.0,0.00015616,2]
[323025824,1713600662360,-1716.47,0.00015616,2]
[323025825,1713600662369,-2688.18,0.00015616,2]
[323025826,1713600662378,-837.93,0.00015616,2]
[323025827,1713600662388,-172.83922431,0.00015616,2]
[323025828,1713600662397,-14404.44,0.00015616,2]
[323025829,1713600662407,-500.0,0.00015616,2]
[323025830,1713600662416,-17610.62,0.00015616,2]
[323025831,1713600662426,-595.82,0.00015616,2]
[323025832,1713600662435,-1099.48,0.00015616,2]
[323025833,1713600662445,-500.0,0.00015616,2]
[323025834,1713600662454,-4596.05,0.00015616,2]
[323025835,1713600662464,-1186.55,0.00015616,2]
[323025836,1713600662473,-500.0,0.00015616,2]
[323025837,1713600662483,-1066.64,0.00015616,2]
[323025838,1713600662492,-500.0,0.00015616,2]
[323025839,1713600662502,-957.16,0.00015616,2]
[323025840,1713600662511,-500.0,0.00015616,2]
[323025841,1713600662520,-500.0,0.00015616,2]
[323025842,1713600662529,-958.42,0.00015616,2]
[323025843,1713600662539,-520.4,0.00015616,2]
[323025844,1713600662548,-500.0,0.00015616,2]
[323025845,1713600662557,-939.83,0.00015616,2]
[323025846,1713600662573,-1645.83,0.00015616,2]
[323025847,1713600662582,-1251.61,0.00015616,2]
[323025848,1713600662591,-500.0,0.00015616,2]
[323025849,1713600662600,-805.0,0.00015616,2]
[323025850,1713600662609,-500.0,0.00015616,2]
[323025851,1713600662619,-500.0,0.00015616,2]
[323025852,1713600662628,-967.62,0.00015616,2]
[323025853,1713600662637,-500.0,0.00015616,2]
[323025854,1713600662646,-500.0,0.00015616,2]
[323025855,1713600662656,-500.0,0.00015616,2]
[323025856,1713600662665,-664.54,0.00015616,2]
[323025857,1713600662675,-1103.38,0.00015616,2]
[323025858,1713600662684,-500.0,0.00015616,2]
[323025859,1713600662694,-1491.73,0.00015616,2]
[323025860,1713600662704,-2579.95,0.00015616,2]
[323025861,1713600662714,-500.0,0.00015616,2]
[323025862,1713600662723,-500.0,0.00015616,2]
[323025863,1713600662733,-4454.84,0.00015616,2]
[323025864,1713600662742,-805.34,0.00015616,2]
[323025865,1713600662752,-608.31,0.00015616,2]
[323025866,1713600662761,-618.01,0.00015616,2]
[323025867,1713600662770,-500.0,0.00015616,2]
[323025868,1713600662779,-500.0,0.00015616,2]
[323025869,1713600662788,-2718.9,0.00015616,2]
[323025870,1713600662799,-977.7,0.00015616,2]
[323025871,1713600662808,-523.44,0.00015616,2]
[323025872,1713600662820,-1687.04,0.00015616,2]
[323025873,1713600662830,-2994.19,0.00015616,2]
[323025874,1713600662840,-1140.09,0.00015616,2]
[323025875,1713600662851,-500.0,0.00015616,2]
[323025876,1713600662860,-500.0,0.00015616,2]
[323025877,1713600662870,-1872.67,0.00015616,2]
[323025878,1713600662885,-806.64,0.00015616,2]
[323025879,1713600662895,-798.54,0.00015616,2]
[323025880,1713600662904,-500.0,0.00015616,2]
[323025881,1713600662913,-500.0,0.00015616,2]
[323025882,1713600662923,-500.0,0.00015616,2]
[323025883,1713600662933,-519.09,0.00015616,2]
[323025884,1713600662943,-500.0,0.00015616,2]
[323025885,1713600662953,-500.0,0.00015616,2]
[323025886,1713600662963,-500.0,0.00015616,2]
[323025887,1713600662973,-500.0,0.00015616,2]
[323025888,1713600662982,-807.87,0.00015616,2]
[323025889,1713600662993,-649.35,0.00015616,2]
[323025890,1713600663002,-1038.56,0.00015616,2]
[323025891,1713600663012,-1650.75,0.00015616,2]
[323025892,1713600663021,-500.0,0.00015616,2]
[323025893,1713600663030,-447.16075478,0.00015616,2]
[323025894,1713600663587,-52.83924522,0.00015616,2]
[323025895,1713600663598,-2183.12,0.00015616,2]
[323025896,1713600663608,-674.74,0.00015616,2]
[323025897,1713600663618,-1532.32,0.00015616,2]
[323025898,1713600663627,-8079.94,0.00015616,2]
[323025899,1713600663637,-500.0,0.00015616,2]
[323025900,1713600663646,-500.0,0.00015616,2]
[323025901,1713600663655,-500.0,0.00015616,2]
[323025902,1713600663665,-2444.67,0.00015616,2]
[323025903,1713600663675,-500.0,0.00015616,2]
[323025904,1713600663684,-500.0,0.00015616,2]
[323025905,1713600663693,-500.0,0.00015616,2]
[323025906,1713600663703,-500.0,0.00015616,2]
[323025907,1713600663712,-774.37,0.00015616,2]
[323025908,1713600663722,-500.0,0.00015616,2]
[323025909,1713600663733,-994.14,0.00015616,2]
[323025910,1713600663743,-1011.8,0.00015616,2]
[323025911,1713600663752,-1797.0,0.00015616,2]
[323025912,1713600663762,-1257.93,0.00015616,2]
[323025913,1713600663771,-500.0,0.00015616,2]
[323025914,1713600663780,-531.68,0.00015616,2]
[323025915,1713600663789,-770.49,0.00015616,2]
[323025916,1713600663799,-500.0,0.00015616,2]
[323025917,1713600663809,-1234.92,0.00015616,2]
[323025918,1713600663822,-747.04,0.00015616,2]
[323025919,1713600663832,-500.0,0.00015616,2]
[323025920,1713600663841,-506.18,0.00015616,2]
[323025921,1713600663851,-1014.71,0.00015616,2]
[323025922,1713600663861,-623.35,0.00015616,2]
[323025923,1713600663870,-897.79,0.00015616,2]
[323025924,1713600663881,-1279.74,0.00015616,2]
[323025925,1713600663892,-784.16,0.00015616,2]
[323025926,1713600663901,-2375.97,0.00015616,2]
[323025927,1713600663911,-500.0,0.00015616,2]
[323025928,1713600663920,-1989.96,0.00015616,2]
[323025929,1713600663931,-4039.72,0.00015616,2]
[323025930,1713600663941,-671.62,0.00015616,2]
[323025931,1713600663952,-674.6,0.00015616,2]
[323025932,1713600663964,-1666.65,0.00015616,2]
[323025933,1713600663974,-500.0,0.00015616,2]
[323025934,1713600663984,-1247.38,0.00015616,2]
[323025935,1713600663994,-500.0,0.00015616,2]
[323025936,1713600664003,-500.0,0.00015616,2]
[323025937,1713600664012,-500.0,0.00015616,2]
[323025938,1713600664022,-1358.81,0.00015616,2]
[323025939,1713600664031,-1407.0,0.00015616,2]
[323025940,1713600664041,-1815.45,0.00015616,2]
[323025941,1713600664050,-2528.38,0.00015616,2]
[323025942,1713600664062,-500.0,0.00015616,2]
[323025943,1713600664074,-500.0,0.00015616,2]
[323025944,1713600664085,-639.31,0.00015616,2]
[323025945,1713600664095,-500.0,0.00015616,2]
[323025946,1713600664106,-1382.52,0.00015616,2]
[323025947,1713600664116,-1243.52,0.00015616,2]
[323025948,1713600664126,-500.0,0.00015616,2]
[323025949,1713600664136,-500.0,0.00015616,2]
[323025950,1713600664145,-1401.23,0.00015616,2]
[323025951,1713600664154,-1039.74,0.00015616,2]
[323025952,1713600664164,-1630.33,0.00015616,2]
[323025953,1713600664250,-4691.46,0.00015616,2]
[323025954,1713600664260,-500.0,0.00015616,2]
[323025955,1713600664269,-741.03,0.00015616,2]
[323025956,1713600664278,-534.8,0.00015616,2]
[323025957,1713600664287,-2160.78,0.00015616,2]
[323025958,1713600664297,-500.0,0.00015616,2]
[323025959,1713600664306,-500.0,0.00015616,2]
[323025960,1713600664323,-2245.5,0.00015616,2]
[323025961,1713600664332,-3687.6,0.00015616,2]
[323025962,1713600664342,-771.7,0.00015616,2]
[323025963,1713600664351,-1513.34,0.00015616,2]
[323025964,1713600664360,-755.8,0.00015616,2]
[323025965,1713600664370,-2521.72,0.00015616,2]
[323025966,1713600664379,-500.0,0.00015616,2]
[323025967,1713600664389,-550.23,0.00015616,2]
[323025968,1713600664398,-620.33,0.00015616,2]
[323025969,1713600664407,-1816.36,0.00015616,2]
[323025970,1713600664417,-1103.02,0.00015616,2]
[323025971,1713600664425,-360.12180752,0.00015616,2]
[323025972,1713600664435,-2136.78,0.00015616,2]
[323025973,1713600664444,-958.78,0.00015616,2]
[323025974,1713600664453,-500.0,0.00015616,2]
[323025975,1713600664462,-500.0,0.00015616,2]
[323025976,1713600664471,-1158.67,0.00015616,2]
[323025977,1713600664481,-784.74,0.00015616,2]
[323025978,1713600664491,-2386.43,0.00015616,2]
[323025979,1713600664500,-500.0,0.00015616,2]
[323025980,1713600664510,-562.18,0.00015616,2]
[323025981,1713600664520,-1545.93,0.00015616,2]
[323025982,1713600664529,-534.55,0.00015616,2]
[323025983,1713600664538,-1112.17,0.00015616,2]
[323025984,1713600664548,-735.71,0.00015616,2]
[323025985,1713600664557,-500.0,0.00015616,2]
[323025986,1713600664571,-500.0,0.00015616,2]
[323025987,1713600664581,-797.83,0.00015616,2]
[323025988,1713600664590,-831.81,0.00015616,2]
[323025989,1713600664599,-500.0,0.00015616,2]
[323025990,1713600664609,-608.87,0.00015616,2]
[323025991,1713600664618,-2279.98,0.00015616,2]
[323025992,1713600664628,-500.0,0.00015616,2]
[323025993,1713600664638,-500.0,0.00015616,2]
[323025994,1713600664647,-3525.39,0.00015616,2]
[323025995,1713600664656,-1131.59,0.00015616,2]
[323025996,1713600664666,-1339.05,0.00015616,2]
[323025997,1713600664675,-3085.38,0.00015616,2]
[323025998,1713600664684,-11644.69,0.00015616,2]
[323025999,1713600664694,-500.0,0.00015616,2]
[323026000,1713600664703,-661.06,0.00015616,2]
[323026001,1713600664712,-500.0,0.00015616,2]
[323026002,1713600664722,-500.0,0.00015616,2]
[323026003,1713600664731,-559.4,0.00015616,2]
[323026004,1713600664740,-606.89,0.00015616,2]
[323026005,1713600664750,-713.27,0.00015616,2]
[323026006,1713600664760,-500.0,0.00015616,2]
[323026007,1713600664769,-5228.49,0.00015616,2]
[323026008,1713600664779,-500.0,0.00015616,2]